bitfinex/quotes_BTCUSD_20251110
["timestamp","ask_amount","ask_price","bid_price","bid_amount"]
[1762755032222,0.07000456,106240.0,106230.0,0.26658932]
[1762755032693,0.07300456,106240.0,106230.0,0.26658932]
[1762755033155,0.07500456,106240.0,106230.0,0.26658932]
[1762755033615,0.03330861,106240.0,106230.0,0.30362932]
[1762755034083,0.03330861,106240.0,106230.0,0.28191932]
[1762755035735,0.04610524,106240.0,106230.0,0.28191932]
[1762755036675,0.04610524,106240.0,106230.0,0.20963073]
[1762755039739,0.06174524,106240.0,106230.0,0.19430073]
[1762755039967,0.06174524,106240.0,106230.0,0.2131278]
[1762755040150,0.08505524,106240.0,106230.0,0.2070978]
[1762755040329,0.04610524,106240.0,106230.0,0.2284578]
[1762755040550,0.04610524,106240.0,106230.0,0.20963073]
[1762755041933,0.06174524,106240.0,106230.0,0.19430073]
[1762755042111,0.08505524,106240.0,106230.0,0.2131278]
[1762755042356,0.27330825,106240.0,106230.0,0.2131278]
[1762755042963,0.27330825,106240.0,106230.0,0.46587773]
[1762755043115,0.27330825,106240.0,106230.0,0.19430073]
[1762755043324,0.27330825,106240.0,106230.0,0.2131278]
[1762755045640,0.27330825,106240.0,106230.0,0.01882707]
[1762755045863,0.52652881,106240.0,106230.0,0.2070978]
[1762755046049,0.52605818,106240.0,106230.0,0.2070978]
[1762755047917,0.08505524,106240.0,106230.0,0.53165373]
[1762755048098,0.27271825,106240.0,106230.0,0.26007673]
[1762755048738,0.27271825,106240.0,106230.0,0.19430073]
[1762755048949,0.27271825,106240.0,106230.0,0.2131278]
[1762755051045,0.27271825,106240.0,106230.0,0.2070978]
[1762755051499,0.18828622,106230.0,106210.0,0.9322442]
[1762755051710,0.02888,106230.0,106220.0,0.44103838]
[1762755051913,0.24205073,106230.0,106220.0,0.28639018]
[1762755052063,0.24205073,106230.0,106220.0,0.18828845]
[1762755053241,0.73986279,106240.0,106230.0,0.18827073]
[1762755053242,0.00304815,106240.0,106230.0,0.18827073]
[1762755053580,0.00304815,106240.0,106230.0,0.83193038]
[1762755053817,0.00304815,106240.0,106230.0,0.93003211]
[1762755053984,0.00304815,106240.0,106230.0,0.83193038]
[1762755054185,4.815e-05,106240.0,106230.0,0.83193038]
[1762755055215,4.815e-05,106240.0,106230.0,0.83393038]
[1762755057079,0.05194815,106240.0,106230.0,0.19630073]
[1762755057459,0.05241478,106240.0,106230.0,0.44905066]
[1762755057790,0.02751478,106240.0,106230.0,0.54715239]
[1762755059110,0.05241478,106240.0,106230.0,0.54715239]
[1762755060687,0.02751478,106240.0,106230.0,0.54715239]
[1762755061327,0.01237478,106240.0,106230.0,0.88206489]
[1762755062145,0.00051478,106240.0,106230.0,1.91477461]
[1762755062296,0.00051478,106240.0,106230.0,2.32223171]
[1762755062507,0.00051478,106240.0,106230.0,2.52095629]
[1762755063632,0.00051478,106240.0,106230.0,2.52048563]
[1762755066304,0.0003254,106250.0,106240.0,0.55918301]
[1762755066468,0.0003254,106250.0,106240.0,1.35745803]
[1762755067114,0.0003254,106250.0,106240.0,1.38571144]
[1762755067492,0.0023254,106250.0,106240.0,0.62746165]
[1762755067737,0.0013254,106250.0,106240.0,1.38571144]
[1762755068217,0.0013254,106250.0,106240.0,1.38671144]
[1762755068863,0.0003254,106250.0,106240.0,1.38671144]
[1762755069157,0.0003254,106250.0,106240.0,1.38771144]
[1762755070915,0.0003254,106250.0,106240.0,2.14596123]
[1762755071315,0.0003254,106250.0,106240.0,1.38771144]
[1762755071829,0.00055867,106250.0,106240.0,2.14596123]
[1762755073317,0.00055867,106250.0,106240.0,1.38771144]
[1762755073546,0.00055867,106250.0,106240.0,2.14596123]
[1762755074099,0.00055867,106250.0,106240.0,0.62993183]
[1762755074301,0.00055867,106250.0,106240.0,1.38818162]
[1762755074858,0.00055867,106250.0,106240.0,2.14643141]
[1762755075877,8.38e-05,106250.0,106240.0,2.14643141]
[1762755076293,0.0001438,106260.0,106250.0,0.94648508]
[1762755076538,0.25351043,106280.0,106270.0,0.18819986]
[1762755076725,0.25355859,106280.0,106270.0,0.18819986]
[1762755076928,0.27018859,106280.0,106270.0,0.18819986]
[1762755077748,0.07659678,106280.0,106270.0,0.18819986]
[1762755077967,0.26477894,106280.0,106270.0,0.18819986]
[1762755078097,0.26477894,106280.0,106270.0,0.22822509]
[1762755078303,0.07659678,106280.0,106270.0,0.48700502]
[1762755078501,0.26477894,106280.0,106270.0,0.48700502]
[1762755078702,0.07659678,106280.0,106270.0,0.23425509]
[1762755078994,0.07659678,106280.0,106270.0,0.73975495]
[1762755078995,0.05434337,106280.0,106270.0,0.73975495]
[1762755079164,0.24252553,106280.0,106270.0,0.48700502]
[1762755079368,0.24252553,106280.0,106270.0,0.04605523]
[1762755079643,0.23252553,106280.0,106270.0,0.23425509]
[1762755079875,0.23952553,106280.0,106270.0,0.23425509]
[1762755080380,0.23952553,106280.0,106270.0,0.19422986]
[1762755080633,0.23952553,106280.0,106270.0,0.44697979]
[1762755081388,0.23952553,106280.0,106270.0,0.19422986]
[1762755081593,0.23952553,106280.0,106270.0,0.00603]
[1762755082375,0.23952553,106280.0,106270.0,0.19422986]
[1762755082527,0.23952553,106280.0,106270.0,0.44697979]
[1762755082695,0.24022511,106280.0,106270.0,0.44697979]
[1762755084273,0.19891511,106280.0,106270.0,0.46271979]
[1762755084476,0.01073295,106280.0,106270.0,0.55743309]
[1762755084682,0.19891511,106280.0,106270.0,0.55743309]
[1762755085070,0.01073295,106280.0,106270.0,0.55743309]
[1762755085290,0.19891511,106280.0,106270.0,0.55743309]
[1762755086725,0.19891511,106280.0,106270.0,0.46271979]
[1762755086926,0.01073295,106280.0,106270.0,0.46271979]
[1762755087126,0.19891511,106280.0,106270.0,0.46271979]
[1762755087667,0.18819986,106270.0,106260.0,0.47713664]
[1762755087922,0.01231,106270.0,106260.0,0.72988657]
[1762755088123,0.19821553,106280.0,106270.0,0.19422986]
[1762755088600,0.22937553,106280.0,106270.0,0.19422986]
[1762755089225,4.816e-05,106280.0,106270.0,0.7342897]
[1762755089388,4.816e-05,106280.0,106270.0,1.05748222]
[1762755089598,0.00304816,106280.0,106270.0,1.05748222]
[1762755089801,0.00304816,106280.0,106270.0,1.12575445]
[1762755090006,0.00304816,106280.0,106270.0,0.87300452]
[1762755090357,0.00604816,106280.0,106270.0,0.87300452]
[1762755090566,0.00604816,106280.0,106270.0,1.12575445]
[1762755090775,0.00304816,106280.0,106270.0,1.12575445]
[1762755091211,0.00304816,106280.0,106270.0,1.19327754]
[1762755091423,4.816e-05,106280.0,106270.0,1.19327754]
[1762755092335,4.816e-05,106280.0,106270.0,1.27327754]
[1762755093354,4.816e-05,106280.0,106270.0,1.20575445]
[1762755093651,0.00074774,106280.0,106270.0,1.20575445]
[1762755094544,0.00074774,106280.0,106270.0,1.27327754]
[1762755095868,0.00074774,106280.0,106270.0,1.59627754]
[1762755098268,0.00074774,106280.0,106270.0,1.30397248]
[1762755098887,0.01305774,106280.0,106270.0,1.28103238]
[1762755099152,0.00074774,106280.0,106270.0,1.30450238]
[1762755099404,0.00074774,106280.0,106270.0,0.80100252]
[1762755099584,0.00074774,106280.0,106270.0,1.30650238]
[1762755099913,0.00074774,106280.0,106270.0,1.40460411]
[1762755101889,0.1889299,106280.0,106270.0,1.40460411]
[1762755102095,0.05121774,106280.0,106270.0,0.62847686]
[1762755102308,0.2393999,106280.0,106270.0,0.87519679]
[1762755102511,0.05121774,106280.0,106270.0,0.87519679]
[1762755102920,0.05121774,106280.0,106270.0,0.62847686]
[1762755103321,0.2393999,106280.0,106270.0,0.72003767]
[1762755103526,0.05121774,106280.0,106270.0,0.72003767]
[1762755103744,0.2393999,106280.0,106270.0,0.72003767]
[1762755103950,0.2393999,106280.0,106270.0,0.62847686]
[1762755104156,0.05121774,106280.0,106270.0,0.62847686]
[1762755104795,0.2393999,106280.0,106270.0,0.62847686]
[1762755104929,0.05121774,106280.0,106270.0,0.62847686]
[1762755105127,0.05121774,106280.0,106270.0,0.72657859]
[1762755105332,0.2393999,106280.0,106270.0,0.72657859]
[1762755105554,0.2393999,106280.0,106270.0,0.62847686]
[1762755105763,0.2393999,106280.0,106270.0,0.27722986]
[1762755106169,0.05121774,106280.0,106270.0,0.27722986]
[1762755106930,0.05121774,106280.0,106270.0,0.27522986]
[1762755107224,0.05121774,106280.0,106270.0,0.27422986]
[1762755107748,0.05121774,106280.0,106270.0,0.36006404]
[1762755108873,0.2393999,106280.0,106270.0,0.27422986]
[1762755110485,0.05121774,106280.0,106270.0,0.27422986]
[1762755114153,0.2393999,106280.0,106270.0,0.27422986]
[1762755114635,0.2393999,106280.0,106270.0,0.27417986]
[1762755115130,0.57612487,106280.0,106270.0,0.07995]
[1762755115337,0.2393999,106280.0,106270.0,0.26814986]
[1762755115954,0.2393999,106280.0,106270.0,0.07995]
[1762755116132,0.2393999,106280.0,106270.0,0.26814986]
[1762755116340,0.2413999,106280.0,106270.0,0.26814986]
[1762755116554,0.2413999,106280.0,106270.0,0.07995]
[1762755116770,0.2423999,106280.0,106270.0,0.07995]
[1762755118939,0.2423999,106280.0,106270.0,0.26814986]
[1762755120447,0.91584984,106280.0,106270.0,0.07995]
[1762755120624,0.6772266,106280.0,106270.0,0.07995]
[1762755120829,0.70547972,106280.0,106270.0,0.07995]
[1762755121028,0.60737799,106280.0,106270.0,0.07995]
[1762755121436,0.98028524,106280.0,106270.0,0.07995]
[1762755121599,0.18823493,106260.0,106240.0,0.92000186]
[1762755122070,0.22554493,106260.0,106240.0,0.92000186]
[1762755122693,0.20060529,106250.0,106240.0,0.55902689]
[1762755122901,0.24124529,106250.0,106240.0,0.52089301]
[1762755123103,0.24124529,106250.0,106240.0,0.51725301]
[1762755123544,0.24124529,106250.0,106240.0,0.006]
[1762755123747,0.24124529,106250.0,106240.0,0.016]
[1762755123954,0.24124529,106250.0,106240.0,0.01]
[1762755124149,0.18825301,106240.0,106230.0,0.52718493]
[1762755124356,0.24126301,106240.0,106230.0,0.52068426]
[1762755124756,0.24126301,106240.0,106230.0,0.19768426]
[1762755124958,0.05301,106240.0,106230.0,0.19768426]
[1762755125158,0.24126301,106240.0,106230.0,0.19768426]
[1762755125363,0.24126301,106240.0,106230.0,0.20068426]
[1762755125895,0.24126301,106240.0,106230.0,0.003]
[1762755126136,0.24126301,106240.0,106230.0,0.19227073]
[1762755126648,0.24126301,106240.0,106230.0,0.18827073]
[1762755126854,0.24126301,106240.0,106220.0,0.54234856]
[1762755127071,0.05301,106240.0,106230.0,0.18827073]
[1762755127301,0.24126301,106240.0,106230.0,0.18927073]
[1762755127704,0.24126301,106240.0,106230.0,0.001]
[1762755127945,0.24126301,106240.0,106220.0,0.54239671]
[1762755128158,0.23829073,106230.0,106220.0,0.5197866]
[1762755128385,0.23829073,106230.0,106220.0,0.00104815]
[1762755128595,0.23829073,106230.0,106220.0,0.1893366]
[1762755128780,0.23829073,106230.0,106220.0,0.00104815]
[1762755129722,0.23829073,106230.0,106220.0,4.815e-05]
[1762755129929,0.23829073,106230.0,106220.0,0.1883366]
[1762755130141,0.23829073,106230.0,106220.0,0.1903366]
[1762755130417,0.23829073,106230.0,106220.0,0.00204815]
[1762755130862,0.23829073,106230.0,106220.0,0.1933366]
[1762755131068,0.23829073,106230.0,106220.0,0.00504815]
[1762755132125,0.05002,106230.0,106220.0,0.2007866]
[1762755132536,0.05002,106230.0,106220.0,0.29888833]
[1762755133289,0.23829073,106230.0,106220.0,0.00504815]
[1762755135297,0.23829073,106230.0,106220.0,0.1933366]
[1762755139472,0.05002,106230.0,106220.0,0.1933366]
[1762755139687,0.05002,106230.0,106220.0,0.2007866]
[1762755140746,0.06391347,106240.0,106230.0,0.18827073]
[1762755140952,0.03565,106240.0,106230.0,0.22717646]
[1762755141157,0.05104,106240.0,106230.0,0.22717646]
[1762755141572,0.02776,106240.0,106230.0,0.22717646]
[1762755141779,0.01237,106240.0,106230.0,0.60962143]
[1762755141982,0.01237,106240.0,106230.0,0.27389646]
[1762755142185,0.01237,106240.0,106230.0,0.24932646]
[1762755144222,0.05268,106240.0,106230.0,0.24932646]
[1762755144455,0.24093301,106240.0,106230.0,0.19530073]
[1762755145116,0.24093301,106240.0,106230.0,0.001]
[1762755146307,0.2585067,106240.0,106230.0,0.001]
[1762755146907,0.25800915,106240.0,106230.0,0.001]
[1762755148803,0.25800915,106240.0,106230.0,0.18927073]
[1762755149207,0.25800915,106240.0,106230.0,0.001]
[1762755151023,0.18827073,106230.0,106220.0,0.18880732]
[1762755151208,0.25865071,106230.0,106220.0,0.1883366]
[1762755151562,0.25865071,106230.0,106220.0,4.815e-05]
[1762755151763,0.25865071,106230.0,106220.0,0.1883366]
[1762755152186,0.25865071,106230.0,106220.0,0.1893366]
[1762755153215,0.25865071,106230.0,106220.0,0.28743833]
[1762755153857,0.25865071,106230.0,106220.0,0.1893366]
[1762755155600,0.25865071,106230.0,106220.0,0.00104815]
[1762755155826,0.25865071,106230.0,106220.0,0.1893366]
[1762755156871,0.07037998,106230.0,106220.0,0.1893366]
[1762755157224,0.25865071,106230.0,106220.0,0.1893366]
[1762755159603,0.25865071,106230.0,106220.0,0.28743833]
[1762755160192,0.25865071,106230.0,106220.0,0.1893366]
[1762755161558,0.07037998,106230.0,106220.0,0.1893366]
[1762755161965,0.25865071,106230.0,106220.0,0.1893366]
[1762755162847,0.07037998,106230.0,106220.0,0.1893366]
[1762755163325,0.25865071,106230.0,106220.0,0.1893366]
[1762755163552,0.25865071,106230.0,106220.0,0.00104815]
[1762755163761,0.25865071,106230.0,106220.0,0.1893366]
[1762755163962,0.25865071,106230.0,106220.0,0.00104815]
[1762755164919,0.5114849,106230.0,106220.0,0.00104815]
[1762755165234,0.25865071,106230.0,106220.0,0.00104815]
[1762755165442,0.5114849,106230.0,106220.0,0.00104815]
[1762755167161,0.49387492,106230.0,106220.0,0.00104815]
[1762755168691,0.51150563,106230.0,106220.0,0.00104815]
[1762755169101,0.49387492,106230.0,106220.0,0.00104815]
[1762755170187,0.05277,106230.0,106220.0,0.1893366]
[1762755170394,0.24104073,106230.0,106220.0,0.28503883]
[1762755170980,0.24104073,106230.0,106220.0,0.1893366]
[1762755171418,0.24104073,106230.0,106220.0,0.00104815]
[1762755172254,0.24104073,106230.0,106220.0,0.1893366]
[1762755172457,0.24104073,106230.0,106220.0,0.00104815]
[1762755174294,0.49387492,106230.0,106220.0,0.00104815]
[1762755176641,0.24104073,106230.0,106220.0,0.1893366]
[1762755178343,0.24104073,106230.0,106220.0,0.00104815]
[1762755179792,0.24104073,106230.0,106220.0,0.1893366]
[1762755180090,0.24104073,106230.0,106220.0,0.00104815]
[1762755181893,0.49387492,106230.0,106220.0,0.00104815]
[1762755182096,0.74670911,106230.0,106220.0,0.00104815]
[1762755182301,0.84076699,106230.0,106220.0,0.00104815]
[1762755183324,0.84076699,106230.0,106220.0,4.815e-05]
[1762755183724,0.84176699,106230.0,106220.0,4.815e-05]
[1762755183933,0.84276699,106230.0,106220.0,4.815e-05]
[1762755184345,1.09560118,106230.0,106220.0,4.815e-05]
[1762755184579,0.84276699,106230.0,106220.0,4.815e-05]
[1762755184940,1.09560118,106230.0,106220.0,4.815e-05]
[1762755185172,0.84276699,106230.0,106220.0,4.815e-05]
[1762755185534,1.90790677,106230.0,106220.0,4.815e-05]
[1762755185732,3.27446177,106230.0,106220.0,4.815e-05]
[1762755186020,3.28327097,106230.0,106220.0,4.815e-05]
[1762755186654,3.28127097,106230.0,106220.0,4.815e-05]
[1762755186861,3.28827097,106230.0,106220.0,4.815e-05]
[1762755187076,3.41165283,106230.0,106220.0,4.815e-05]
[1762755187280,3.3913727,106230.0,106220.0,4.815e-05]
[1762755188249,3.29327097,106230.0,106220.0,4.815e-05]
[1762755188595,3.33467097,106230.0,106220.0,4.815e-05]
[1762755188806,1.6494374,106230.0,106220.0,4.815e-05]
[1762755189010,2.44053077,106230.0,106220.0,4.815e-05]
[1762755195258,1.6291982,106230.0,106220.0,4.815e-05]
[1762755195471,1.5238042,106230.0,106220.0,4.815e-05]
[1762755196205,1.4824042,106230.0,106220.0,4.815e-05]
[1762755196391,1.5238042,106230.0,106220.0,4.815e-05]
[1762755196893,1.52353728,106230.0,106220.0,4.815e-05]
[1762755197501,1.66269828,106230.0,106220.0,4.815e-05]
[1762755199049,1.52353728,106230.0,106220.0,4.815e-05]
[1762755200281,1.76023601,106230.0,106220.0,4.815e-05]
[1762755200488,2.51873858,106230.0,106220.0,4.815e-05]
[1762755204148,2.42063685,106230.0,106220.0,4.815e-05]
[1762755208069,0.18830618,106210.0,106200.0,0.00156247]
[1762755208284,2.95660134,106210.0,106200.0,0.00204474]
[1762755208496,3.02543463,106210.0,106200.0,0.00204474]
[1762755208707,3.12353636,106210.0,106200.0,0.00204474]
[1762755208929,3.12753636,106210.0,106200.0,0.00204474]
[1762755209136,2.06452907,106190.0,106180.0,0.004]
[1762755209342,2.15103956,106190.0,106180.0,0.00414456]
[1762755209544,2.27227129,106190.0,106180.0,0.00414456]
[1762755209876,2.27641585,106190.0,106180.0,0.00414456]
[1762755211095,3.13189685,106190.0,106180.0,0.00414456]
[1762755211342,3.13489685,106190.0,106180.0,0.00414456]
[1762755211500,3.03679512,106190.0,106180.0,0.00414456]
[1762755211850,3.03779512,106190.0,106180.0,0.00414456]
[1762755213614,2.18231412,106190.0,106180.0,0.00414456]
[1762755213971,1.42381155,106190.0,106180.0,0.00414456]
[1762755214175,1.48960412,106190.0,106180.0,0.00414456]
[1762755214708,1.48960412,106190.0,106180.0,0.00461153]
[1762755217237,1.48964412,106190.0,106180.0,0.00461153]
[1762755218424,0.30090898,106190.0,106180.0,0.00461153]
[1762755218626,0.8438728,106190.0,106180.0,0.00461153]
[1762755219821,0.8024328,106190.0,106180.0,0.00461153]
[1762755220234,0.8438728,106190.0,106180.0,0.00461153]
[1762755221074,0.8024328,106190.0,106180.0,0.00461153]
[1762755221473,0.8438728,106190.0,106180.0,0.00461153]
[1762755223844,0.8024328,106190.0,106180.0,0.00461153]
[1762755224314,0.8438328,106190.0,106180.0,0.00461153]
[1762755224522,0.26058214,106190.0,106180.0,0.19297091]
[1762755224727,0.26058214,106190.0,106180.0,0.10271326]
[1762755225127,0.26058214,106190.0,106180.0,0.19297091]
[1762755225742,0.26058214,106190.0,106180.0,0.00461153]
[1762755226108,0.5979217,106190.0,106180.0,0.00461153]
[1762755226835,0.5979217,106190.0,106180.0,0.19297091]
[1762755227012,0.26058214,106190.0,106180.0,0.19297091]
[1762755227617,0.07224049,106190.0,106180.0,0.19297091]
[1762755227819,0.07224049,106190.0,106180.0,0.23852615]
[1762755228001,0.07224049,106190.0,106180.0,0.2389952]
[1762755228216,0.26058214,106190.0,106180.0,0.2389952]
[1762755228422,0.26058214,106190.0,106180.0,0.23852615]
[1762755229003,0.26058214,106190.0,106180.0,0.19297091]
[1762755230131,0.07224049,106190.0,106180.0,0.19297091]
[1762755230374,0.26058214,106190.0,106180.0,0.20042091]
[1762755231242,0.07224049,106190.0,106180.0,0.20042091]
[1762755231446,0.24302165,106190.0,106180.0,0.20042091]
[1762755232717,0.24302165,106190.0,106180.0,0.01206153]
[1762755233042,0.24302165,106190.0,106180.0,0.20042091]
[1762755234377,0.24302165,106190.0,106180.0,0.01206153]
[1762755234616,0.24302165,106190.0,106180.0,0.00461153]
[1762755234867,0.24302165,106190.0,106180.0,0.19297091]
[1762755235868,0.24302165,106190.0,106180.0,0.24101533]
[1762755236293,0.05468,106190.0,106180.0,0.24101533]
[1762755236467,0.24302165,106190.0,106180.0,0.2414857]
[1762755236677,0.24302165,106190.0,106180.0,0.19297091]
[1762755237051,0.24302165,106190.0,106180.0,0.00461153]
[1762755237284,0.24302165,106190.0,106180.0,0.19297091]
[1762755238578,0.58036121,106190.0,106180.0,0.00461153]
[1762755240506,0.004,106190.0,106180.0,0.25691684]
[1762755240709,0.004,106190.0,106180.0,0.32423461]
[1762755240914,0.19234165,106190.0,106180.0,0.32423461]
[1762755241109,0.19234165,106190.0,106180.0,0.32376488]
[1762755241308,0.20482165,106190.0,106180.0,0.30122488]
[1762755241514,0.20482165,106190.0,106180.0,0.21554091]
[1762755241719,0.22755165,106190.0,106180.0,0.21554091]
[1762755242010,0.03921,106190.0,106180.0,0.21554091]
[1762755242220,0.22755165,106190.0,106180.0,0.21601128]
[1762755242437,0.24307165,106190.0,106180.0,0.20042091]
[1762755242629,0.032,106190.0,106180.0,0.20042091]
[1762755242823,0.032,106190.0,106180.0,0.20089064]
[1762755243025,0.01648,106190.0,106180.0,0.23855064]
[1762755243238,0.24307165,106190.0,106180.0,0.20089064]
[1762755243463,0.004,106190.0,106180.0,0.65775582]
[1762755243676,0.004,106190.0,106180.0,0.98122555]
[1762755244406,0.001,106190.0,106180.0,0.64388599]
[1762755244560,0.001,106190.0,106180.0,0.98122555]
[1762755244768,0.002,106190.0,106180.0,0.98122555]
[1762755245169,0.001,106190.0,106180.0,0.98122555]
[1762755245558,0.001,106190.0,106180.0,1.31856511]
[1762755245758,0.001,106190.0,106180.0,0.98122555]
[1762755245986,0.03249,106210.0,106200.0,0.18832391]
[1762755246170,0.22079618,106210.0,106200.0,0.1887934]
[1762755246377,0.04801,106210.0,106200.0,0.18832391]
[1762755246592,0.04801,106210.0,106200.0,0.18879471]
[1762755246802,0.23631618,106210.0,106200.0,0.1887947]
[1762755247004,0.23631618,106210.0,106200.0,0.18832391]
[1762755247221,0.23731618,106210.0,106200.0,0.18832391]
[1762755248224,0.02628,106210.0,106200.0,0.19801391]
[1762755248403,0.01076,106210.0,106200.0,0.2136047]
[1762755248629,0.04901,106210.0,106200.0,0.1984847]
[1762755248816,0.04901,106210.0,106200.0,0.19801391]
[1762755249028,0.23731618,106210.0,106200.0,0.1984847]
[1762755249252,0.001,106210.0,106200.0,1.28154439]
[1762755249458,0.00132889,106240.0,106230.0,0.18827073]
[1762755249672,0.03653889,106240.0,106230.0,0.01085]
[1762755249892,0.24031222,106240.0,106220.0,0.19960794]
[1762755250101,0.57765146,106240.0,106230.0,0.18827073]
[1762755250311,0.2403119,106240.0,106230.0,0.18827073]
[1762755250727,0.24079345,106240.0,106220.0,0.22214794]
[1762755250975,0.24079345,106240.0,106230.0,0.18827073]
[1762755252148,0.24179345,106240.0,106230.0,0.18827073]
[1762755252353,0.24179345,106240.0,106220.0,0.31208354]
[1762755252753,0.24079345,106240.0,106230.0,0.18827073]
[1762755253555,0.18827073,106230.0,106220.0,0.01132071]
[1762755253783,0.18828845,106220.0,106210.0,0.19962485]
[1762755254031,0.01248,106220.0,106210.0,0.19915618]
[1762755254233,0.21628845,106220.0,106210.0,0.19962693]
[1762755254411,0.21628845,106220.0,106210.0,0.19915618]
[1762755254412,0.028,106220.0,106210.0,0.19915618]
[1762755254783,0.028,106220.0,106210.0,0.19962526]
[1762755254981,0.21628845,106220.0,106210.0,0.19962526]
[1762755255132,0.028,106220.0,106210.0,0.29725791]
[1762755255332,0.21628845,106220.0,106210.0,0.29772866]
[1762755255539,0.21628845,106220.0,106210.0,0.19915618]
[1762755255763,0.21628845,106220.0,106210.0,0.20215618]
[1762755256204,0.23901845,106220.0,106210.0,0.01685]
[1762755256410,0.23901845,106220.0,106210.0,0.20515618]
[1762755256545,0.23901845,106220.0,106210.0,0.01685]
[1762755257195,0.23901845,106220.0,106210.0,0.20515618]
[1762755258124,0.23901845,106220.0,106210.0,0.01685]
[1762755258437,0.23901845,106220.0,106210.0,0.20515618]
[1762755259042,0.23901845,106220.0,106210.0,0.19915618]
[1762755259393,0.23901845,106220.0,106210.0,0.01185]
[1762755259839,0.23901845,106220.0,106210.0,0.01385]
[1762755260653,0.57635801,106220.0,106210.0,0.003]
[1762755264235,0.59390991,106220.0,106210.0,0.003]
[1762755266068,0.0682819,106220.0,106210.0,0.19130618]
[1762755266344,0.21832664,106220.0,106210.0,0.20684618]
[1762755266547,0.23370664,106220.0,106210.0,0.20684618]
[1762755266825,0.25764664,106220.0,106210.0,0.19130618]
[1762755267757,0.06935819,106220.0,106210.0,0.19130618]
[1762755267966,0.06935819,106220.0,106210.0,0.23274126]
[1762755268180,0.06935819,106220.0,106210.0,0.19130618]
[1762755268392,0.02786,106220.0,106210.0,0.19130618]
[1762755268617,0.21614845,106220.0,106210.0,0.19130618]
[1762755268821,0.24008845,106220.0,106210.0,0.19130618]
[1762755269140,0.0518,106220.0,106210.0,0.19130618]
[1762755269352,0.21614845,106220.0,106210.0,0.19130618]
[1762755269985,0.24008845,106220.0,106210.0,0.003]
[1762755270210,0.24008845,106220.0,106210.0,0.19130618]
[1762755270416,0.21614845,106220.0,106210.0,0.20684618]
[1762755270768,0.24008845,106220.0,106210.0,0.20684618]
[1762755272435,0.02786,106220.0,106210.0,0.24983526]
[1762755272597,0.01248,106220.0,106210.0,0.24983526]
[1762755273548,0.18828845,106220.0,106210.0,0.24983526]
[1762755273750,0.18828845,106220.0,106210.0,0.27439526]
[1762755274103,0.18828845,106220.0,106210.0,0.24983526]
[1762755274899,0.56203029,106230.0,106210.0,0.24983526]
[1762755275112,0.57962178,106230.0,106220.0,0.18828845]
[1762755275313,0.57962178,106230.0,106220.0,0.23460388]
[1762755275544,0.04545149,106230.0,106220.0,0.19913845]
[1762755275723,0.24007073,106230.0,106220.0,0.19913845]
[1762755275983,0.02786,106230.0,106220.0,0.21467845]
[1762755276211,0.01348,106230.0,106220.0,0.21467845]
[1762755276434,0.01348,106230.0,106220.0,0.23923845]
[1762755276633,0.01348,106230.0,106220.0,0.32665209]
[1762755277182,0.2119561,106240.0,106230.0,0.18827073]
[1762755277434,0.2119561,106240.0,106230.0,0.19912073]
[1762755278374,0.2149561,106240.0,106230.0,0.19912073]
[1762755278790,0.2542761,106240.0,106230.0,0.19912073]
[1762755278957,0.2512761,106240.0,106230.0,0.19912073]
[1762755279345,0.2522761,106240.0,106230.0,0.19912073]
[1762755279922,0.24286345,106240.0,106230.0,0.19912073]
[1762755280337,0.05461044,106240.0,106230.0,0.19912073]
[1762755280542,0.24286345,106240.0,106230.0,0.19912073]
[1762755281790,0.21892345,106240.0,106230.0,0.19912073]
[1762755281997,0.24286345,106240.0,106230.0,0.19912073]
[1762755282213,0.05461044,106240.0,106230.0,0.24983405]
[1762755282411,0.00281044,106240.0,106230.0,0.69306618]
[1762755282615,0.00281044,106240.0,106230.0,1.01606618]
[1762755282960,0.00281044,106240.0,106230.0,0.67872662]
[1762755283164,0.00281044,106240.0,106230.0,1.01606618]
[1762755283618,0.00281044,106240.0,106230.0,1.01653676]
[1762755283836,0.00281044,106240.0,106230.0,1.01606618]
[1762755284050,0.00281044,106240.0,106230.0,1.01653676]
[1762755284263,0.00181044,106240.0,106230.0,1.01653676]
[1762755284478,0.00181044,106240.0,106230.0,1.01706618]
[1762755284694,0.00181044,106240.0,106230.0,1.01753502]
[1762755284904,0.00181044,106240.0,106230.0,1.43710337]
[1762755285106,0.00181044,106240.0,106230.0,1.44110337]
[1762755285325,0.00181044,106240.0,106230.0,1.44610337]
[1762755285742,0.00181044,106240.0,106230.0,1.55610337]
[1762755288740,0.00181044,106240.0,106230.0,1.3034674]
[1762755291653,0.00181044,106240.0,106230.0,1.05083143]
[1762755291822,0.00181044,106240.0,106230.0,1.3034674]
[1762755294965,0.00181044,106240.0,106230.0,0.79780546]
[1762755295177,0.00181044,106240.0,106230.0,1.25236408]
[1762755295636,0.00181044,106240.0,106230.0,0.99972811]
[1762755296553,0.00181044,106240.0,106230.0,1.25236408]
[1762755296686,0.00181044,106240.0,106230.0,0.99972811]
[1762755297401,0.00181044,106240.0,106230.0,1.25236408]
[1762755297921,0.00181044,106240.0,106230.0,1.35046581]
[1762755301299,0.00181044,106240.0,106230.0,1.35046755]
[1762755303183,0.24176345,106240.0,106230.0,0.009]
[1762755303436,0.74703539,106240.0,106230.0,0.009]
[1762755304351,0.74703539,106240.0,106230.0,0.19727073]
[1762755304560,0.74703539,106240.0,106230.0,0.005]
[1762755304766,0.74703539,106240.0,106230.0,0.18827073]
[1762755305139,0.74703539,106240.0,106230.0,0.19127073]
[1762755305359,0.74703539,106240.0,106230.0,0.19427073]
[1762755305843,0.74703539,106240.0,106230.0,0.006]
[1762755306048,0.74703539,106240.0,106230.0,0.19427073]
[1762755306252,0.74703539,106240.0,106230.0,0.006]
[1762755311943,0.74703539,106240.0,106230.0,0.19427073]
[1762755312147,0.74703539,106240.0,106230.0,0.23361162]
[1762755312818,0.74703539,106240.0,106230.0,0.006]
[1762755312958,0.74703539,106240.0,106230.0,0.19427073]
[1762755313154,0.74703539,106240.0,106230.0,0.006]
[1762755315110,1.10690393,106240.0,106230.0,0.006]
[1762755315365,1.14308621,106240.0,106230.0,0.006]
[1762755316005,1.14308621,106240.0,106230.0,0.003]
[1762755316217,1.10164621,106240.0,106230.0,0.003]
[1762755316430,1.14408621,106240.0,106230.0,0.003]
[1762755316639,0.1882868,106230.0,106210.0,0.1977184]
[1762755316849,0.72902874,106230.0,106220.0,0.18828845]
[1762755317572,0.74450874,106230.0,106220.0,0.18828845]
[1762755317783,0.18828845,106220.0,106210.0,0.29120413]
[1762755318010,0.74450874,106230.0,106220.0,0.19028845]
[1762755318219,0.72902874,106230.0,106220.0,0.19028845]
[1762755318422,0.74450874,106230.0,106220.0,0.19028845]
[1762755318630,0.74450874,106230.0,106220.0,0.002]
[1762755318841,0.74450874,106230.0,106220.0,0.003]
[1762755319528,0.74450874,106230.0,106220.0,0.001]
[1762755319927,0.74450874,106230.0,106220.0,0.18928845]
[1762755320139,0.74450874,106230.0,106220.0,0.001]
[1762755320352,0.74450874,106230.0,106220.0,0.18928845]